Workbook

Sheet Sheet1
A1: 报价表
A2: ☆填写要求☆： 1.朱红色为手动填写，供应商按项目情况录入内容； 2.褐红色为下拉选项，供应商按项目情况选择合适选项； 3.紫色为固定值，供应商无需修改； 4.蓝色为自动填充，供应商无需录入，表格根据录入情况自动反显内容。
A3: 供应商名称 （手动填写） | C3: （加盖公章）
A4: 广东省网上中介服务超市登记服务信息 （手动填写） | C4: £已登记，服务信息： £未登记。
A5: 宗地位置 （手动填写） | C5: 江门市蓬江区大型产业集聚区启动区核心区 | F5: 红线范围（km2） （手动填写） | G5: 1.24 | H5: 根据《广东省地质灾害危险性评估实施细则》（2021年修订版）第三章第一节第二十一条，非线状工程的评估范围应根据实际情况适当外扩，一般应以征地红线外扩50m以上。
A6: 报价金额（万元） （手动填写） | D6: 大写：（人民币 ) | F6: 评估范围（km2） （手动填写） | G6: 1.5
A7: 费用构成
A8: 地质灾害评估基本取费 | B8: 建设项目重要性分类表 | C8: 项目类别 （固定值） | D8: 划分指标（占地面积（k㎡） （自动填充） | F8: 重要性 （自动填充） | G8: 取费依据 （手动填写）
C9: 城镇和开发区 | D9: =G6 -> 1.5 | F9: =IF(D9>=2,"重要建设项目",IF(AND(D9<2,D9>=0.5),"较重要建设项目",IF(D9<0.5,"一般建设项目",NULL))) -> 较重要建设项目 | G9: 1.按《广东省地质灾害危险性评估取费指导价格》计价。 2.包括进行地质灾害资料收集、现场调查、图件绘制、技术分析,以及评估报告的编制和评审、税金等全部费用。地质灾害危险性评估工作中进行地形测绘、勘探工程等工作,按《工程勘察设计收费标准》(计价格[2002]10号)中通用勘察收费规定另行计取工作费用。
B10: 地质环境条件复杂程度分级表 （孰高原则取值） | C10: 条件 （固定值） | D10: 类别 （下拉选项） | F10: 程度 （自动填充）
C11: 区域地质背景 | D11: 区域地质构造条件简单，建设场地附近无全新世活动断裂，地震基本烈度小于或等于VI度，地震动峰值加速度小于0.10g | F11: =IF(D11="区域地质构造条件复杂，建设场地有全新世活动断裂，地震基本烈度大于VIII度，地震动峰值加速度大于0.20g","复杂",IF(D11="区域地质构造条件较复杂，建设场地附近有全新世活动断裂，地震基本烈度VII度VIII度，地震动峰值加速度 0.10g~0.20g","中等",IF(D11="区域地质构造条件简单，建设场地附近无全新世活动断裂，地震基本烈度小于或等于VI度，地震动峰值加速度小于0.10g","简单",NULL))) -> 简单
C12: 地形地貌 | D12: 单一地貌单元，且相对高差小于50m，地形坡度小于10° | F12: =IF(D12="评估区跨越两种或两种以上地貌单元；相对高差大于200m，或地形坡度>30°","复杂",IF(D12="评估区跨越两种或两种以上地貌单元，相对高差50~200m，地形坡度10°~30°","中等",IF(D12="单一地貌单元，且相对高差小于50m，地形坡度小于10°","简单",NULL))) -> 简单
C13: 地层岩性和岩土工程地质性质 | D13: 岩层倾角<10°，岩体为整体构造；岩土分层少厚度稳定，力学性质离散性小；岩土水理性能良好，不会出现崩解、渗漏破坏、淘蚀或软化 | F13: =IF(D13="岩层倾角>45°，岩体为碎裂及散体结构构造；岩土分层多；岩土层厚度变化大，力学性质离散性大；岩土水理性能差，容易出现崩解、渗漏破坏、淘蚀或软化","复杂",IF(D13="岩层倾角10°~45°，岩体为层状-块状构造；岩土分层较多；工程岩土层厚度较大，力学性质离散性较大；岩土水理性能较差，可能出现崩解和渗漏破坏，一般无淘蚀、软化","中等",IF(D13="岩层倾角<10°，岩体为整体构造；岩土分层少厚度稳定，力学性质离散性小；岩土水理性能良好，不会出现崩解、渗漏破坏、淘蚀或软化","简单",NULL))) -> 简单
C14: 地质构造 | D14: 无褶皱断裂；且<3组节理裂隙，倾角变化小稳定性较好，岩体较完整 | F14: =IF(D14="褶皱断裂发育;有二组及以上张性断裂；或有多于4组裂隙，间距<0.3m，倾角变化大；岩体破碎","复杂",IF(D14="褶皱断裂较发育；偶见断裂，对稳定性和工程无重大影响；有3~4组节理裂隙，间距0.3~1.0m，倾角变化较大；岩体较破碎","中等",IF(D14="无褶皱断裂；且<3组节理裂隙，倾角变化小稳定性较好，岩体较完整","简单",NULL))) -> 简单
C15: 水文地质条件 | D15: 单层含水层，水位年际变化小于5m，水文地质条件良好 | F15: =IF(D15="具多层含水层，水位年际变化大于20m，水文地质条件不良","复杂",IF(D15="有二至三层含水层，水位年际变化5m~20m，水文地质条件较差","中等",IF(D15="单层含水层，水位年际变化小于5m，水文地质条件良好","简单",NULL))) -> 简单
C16: 地质灾害及不良地质现象 | D16: 发育弱或不发育，危害小 | F16: =IF(D16="发育强烈，危害较大","复杂",IF(D16="发育中等，危害中等","中等",IF(D16="发育弱或不发育，危害小","简单",NULL))) -> 简单
C17: 人类活动对地质环境的影响 | D17: 弱:填土边坡或土质挖方边坡<5m;岩质挖方边坡<10m;无潜埋洞室和地下采空区;对地形地貌景观破坏程度轻微 | F17: =IF(D17="强烈:填土边坡或土质挖方边坡>20mm;岩质挖方边坡>30m;潜埋洞室，洞跨>15m;水平缓倾斜(0~60°)矿体地下采空区;对地形地貌景观破坏程度大","复杂",IF(D17="中等:填土边坡或土质挖方边坡5~20m;岩质挖方边坡10~30m;潜埋洞室，洞跨<15m;陡倾斜(>60°)矿体地下采空区;对地形地貌景观破坏程度中","中等",IF(D17="弱:填土边坡或土质挖方边坡<5m;岩质挖方边坡<10m;无潜埋洞室和地下采空区;对地形地貌景观破坏程度轻微","简单",NULL))) -> 简单
C18: 综合程度 （自动填充） | F18: =IF(SUMPRODUCT(--(F11:F17="复杂"))>0,"复杂",IF(SUMPRODUCT(--(F11:F17="中等"))>0,"中等",IF(SUMPRODUCT(--(F11:F17="简单"))>0,"简单",NULL))) -> 简单
B19: 地灾危险性评估分级表 （自动填充） | F19: =IF(OR(AND(F9="重要建设项目",F18="复杂"),AND(F9="重要建设项目",F18="中等"),AND(F9="较重要建设项目",F18="复杂")),"一等",IF(OR(AND(F9="重要建设项目",F18="简单"),AND(F9="较重要建设项目",F18="中等"),AND(F9="一般建设项目",F18="复杂")),"二等",IF(OR(AND(F9="较重要建设项目",F18="简单"),AND(F9="一般建设项目",F18="中等"),AND(F9="一般建设项目",F18="简单")),"三等",NULL))) -> 三等
B20: 地灾危险性评估基本取费表 | C20: 工程类别 （固定值） | F20: 基本取费 （万元） （自动填充）
C21: 工业、民用及公用建设工程 | F21: =IF(AND(F19="一等",F18="复杂"),22,IF(AND(F19="一等",F18="中等"),18,IF(AND(F19="一等",F18="简单"),16,IF(AND(F19="二等",F18="复杂"),14,IF(AND(F19="二等",F18="中等"),12,IF(AND(F19="三等",F18="中等"),10,IF(AND(F19="三等",F18="简单"),9,NULL))))))) -> 9
B22: 工程规模和工程类别调整系数表 | C22: 工程类别 （固定值） | E22: 工程类别调整系数（K1） （固定值） | F22: 工程规模调整系数（K2）（自动填充）
C23: 工业厂房、民用住宅工程 | E23: 1 | F23: =IF(D9<=1,1,IF(D9>1,1+(D9-1)/2,NULL)) -> 1.25
B24: 地区调整系数表 | C24: 适用地区 （固定值） | F24: 调整系数（K3） （固定值）
C25: 湛江、茂名、阳江、肇庆、云浮、江门、惠州、汕头、汕尾、揭阳、潮州 | F25: 1.1
B26: 地质灾害评估取费基准价=地质灾害评估基本取费×工程类别调整系数(K1)×工程规模调整系数(K2)×地区调整系数(K3) （自动填充） | F26: =F21*E23*F23*F25 -> 12.375
A27: 工程测量取费 | B27: 控制测量—GPS测量—E级 | C27: 数量（点） （固定值） | D27: 复杂程度 （下拉选项） | E27: 收费基价（元） （自动填充） | F27: 计价（万元） （自动填充） | G27: 1.数量：《全球定位系统(GPS)测量规范》（GB/T 18314-2009）6.1.6，为求定GPS点在某一参考坐标系中坐标,应与该参考坐标系中的原有控制点联测,联测的总点数不应少于3点。 2.基价：：《工程勘察设计收费标准》(计价格[2002]10号)，2.2地面测量实物工作收费基价表（表2.2-2），控制测量——GPS测量——E级，简单。
C28: 3 | D28: 简单 | E28: =IF(D28="简单",2821,IF(D28="中等",3203,IF(D28="复杂",4123,NULL))) -> 2821 | F28: =ROUND(C28*E28/10000,4) -> 0.8463
B29: 1:2000数字化测图 | C29: 数量（km2） （自动填充） | D29: 复杂程度 （下拉选项） | E29: 收费基价（元） （自动填充） | F29: 计价（万元） （自动填充） | G29: 1.数量：与评估范围一致。 2.基价：《工程勘察设计收费标准》(计价格[2002]10号)，2.2地面测量实物工作收费基价表（表2.2-2），地形测量——一般地区——1:2000，简单。
C30: =D9 -> 1.5 | D30: 简单 | E30: =IF(D30="简单",6676,IF(D30="中等",8901,IF(D30="复杂",14244,NULL))) -> 6676 | F30: =ROUND(C30*E30/10000,4) -> 1.0014
B31: 测量技术工作费 | C31: 费率 （固定值） | F31: 计价（万元） （自动填充） | G31: 《工程勘察设计收费标准》(计价格[2002]10号)，2.1工程测量技术工作费收费比例为22%。
C32: 22% | F32: =ROUND((F28+F30)*C32,4) -> 0.4065
B33: 合计 （自动填充） | F33: =F28+F30+F32 -> 2.2542
A34: 岩土工程勘察取费 | B34: 钻孔 | C34: 数量（个） （自动填充） | D34: 深度（m） （手动填写） | E34: 收费基价（元） （手动填写） | F34: 计价（万元） （自动填充） | G34: 1.数量：《广东省地质灾害危险性评估实施细则(2021年修订版)》第四章第一节第三十三条（二），根据建设工程和各类规划区特点,进行1:1000~1:10000(较长的线状工程可选用1:25000一1:50000)比例尺地质环境综合调查工作，按照相应精度要求(在成图面积10x10cm2的范围内，调查控制点不应少于5个)对地层岩石、地质构造、水文地质、岩土工程地质、不良地质现象和地质灾害等进行调查。 2.基价：《工程勘察设计收费标准》(计价格[2002]10号)，3.3岩土工程勘探实物工作收费基价表（表3.3-2），深度30<D≦40，Ⅲ基价为209元。
C35: =ROUNDUP(IF(D9<=1,5,IF(D9>1,D9*5,NULL)),0) -> 8 | D35: 40 | E35: 209 | F35: =ROUND(C35*D35*E35/10000,4) -> 6.688
B36: 岩土工程勘察技术工作费 | C36: 勘察等级 （下拉选项） | D36: 费率 （自动填充） | F36: 计价（万元） （自动填充） | G36: 《工程勘察设计收费标准》(计价格[2002]10号)，3.1岩土工程勘察技术工作费收费比例表（表3.1-1），乙级收费比例为100%
C37: 甲级 | D37: =IF(C37="丙级",80%,IF(C37="乙级",100%,IF(C37="甲级",120%,NULL))) -> 1.2 | F37: =ROUND(F35*D37,4) -> 8.0256
B38: 合计 （自动填充） | F38: =F35+F37 -> 14.7136
A39: 室内试验取费 | B39: 采样检测费（土常规） | C39: 数量（个） （自动填充） | D39: 平均每孔检测组数（组） （手动填写） | E39: 收费基价（元） （手动填写） | F39: 计价（万元） （自动填充） | G39: 基价：《工程勘察设计收费标准》(计价格[2002]10号)，8.2土工试验实物工作收费基价表（表8.2-1）中的含水率、密度、比重、颗粒分析、液限、塑限、压缩、直接快剪。
C40: =C35 -> 8 | D40: 7 | E40: 308 | F40: =ROUND(C40*D40*E40/10000,4) -> 1.7248
B41: 采样检测费（一般水质全分析） | C41: 数量（组） （手动填写） | E41: 收费基价（元） （手动填写） | F41: 计价（万元） （自动填充） | G41: 1.数量：《地质灾害危险性评估规范》（GB/T 40112-2021）中并未具体说明水样检测的数量要求，结合项目经验，一般不少于2个。 2.基价：《工程勘察设计收费标准》(计价格[2002]10号)，8.3水质分析实物工作收费基价表（表8.3-1），一般水质全分析380元。
C42: 2 | E42: 380 | F42: =ROUND(C42*E42/10000,4) -> 0.076
B43: 室内试验技术工作费 | C43: 费率 （固定值） | F43: 计价（万元） （自动填充） | G43: 《工程勘察设计收费标准》(计价格[2002]10号)，8.1室内试验技术工作费收费比例为10%。
C44: 10% | F44: =ROUND((F40+F42)*C44,4) -> 0.1801
B45: 合计 （自动填充） | F45: =F40+F42+F44 -> 1.9809
A46: 总计 （自动填充） | F46: =F26+F33+F38+F45 -> 31.3237 | G46: 优惠价 （手动填写）
A47: 注：本单位承诺符合《询价公告》中的供应商要求，如有虚假，将依法承担相应责任。
